Cogmind - Beta 16 @@@ ROGUE MODE // 2025.12.27 @ 13:31:07 Player: Compilatron Result: Destroyed by D-63 Destroyer with Heavy Rocket Launcher Performance ------------- Evolutions (6) 3000 Regions Visited (14) 2800 Robots Destroyed (30) 150 Value Destroyed (1182) 1182 Prototype IDs (4) 80 Alien Tech Used (0) 0 Bonus (1662) 1662 TOTAL SCORE: 8874 Bonus ------- Follower Combat Kills 690 Entered DSFs 500 MAIN.C Attacked Warlord 500 Warlord Defense Kills 134 Friendly Fire -162 Cogmind --------- Core Integrity 0/1150 Matter 300/300 Energy 99/100 System Corruption 0% Temperature Cool (0) Movement Core (100) Ox1 Location -3/Proximity Caves Parts ------- > --- POWER (2) -------- (None) > --- PROPULSION (6) --- (None) > --- UTILITY (9) ------ Advanced Visual Processing Unit Advanced Signal Interpreter 0b10 Decoder Chip [Scout] Advanced ECM Suite Makeshift Power Shielding Improved System Guard > --- WEAPON (2) ------- (None) > --- INVENTORY (5) ---- Matter Compressor (250) Advanced Hardlight Generator HERF Cannon Peak State ------------ > --- POWER ------------ Backup Power III Antimatter Reactor > --- PROPULSION ------- Improved Medium Treads Nuclear Pulse Array Nuclear Pulse Array Impulse Thruster > --- UTILITY ---------- Advanced Visual Processing Unit Advanced Signal Interpreter 0b10 Decoder Chip [Scout] Advanced Transmission Jammer Advanced ECM Suite Makeshift Power Shielding Advanced Hardlight Generator Advanced Hacking Suite Improved System Guard > --- WEAPON ----------- Hardcell Cannon Heavy Gauss Cannon > --- INVENTORY -------- Matter Compressor Backup Laser III Backup Laser III HERF Cannon Railgun [Rating: 110] Favorites ----------- Power Antimatter Reactor Engine Improved Deuterium Engine Power Core Neutrino Core Reactor Antimatter Reactor Propulsion Light Treads Treads Light Treads Leg Carbon-fiber Leg Wheel Wheel Flight Unit Cesium-ion Thruster Utility Advanced Visual Processing Unit Device Advanced ECM Suite Storage Medium Storage Unit Processor Advanced Visual Processing Unit Hackware Hacking Suite Protection Improved Light Armor Plating Weapon Gatling Laser Energy Gun Gatling Laser Energy Cannon HERF Cannon Ballistic Gun Railgun Ballistic Cannon Hardcell Cannon Launcher Grenade Launcher Special Weapon Mining Laser Slashing Weapon Chainsword Build | -11 -10 -10 -9 -8 -7 -6 -6 -5 -5 -4 -4 -4 -4 -3 ------- Run | Yrd Mat Min Mat Mat Fac Fac Ext Fac DSF Fac Upp Upp War Pro Slots Evolved 12 | . . . 2 2 2 2 . 2 . 2 . . . . Power 1 | . . . . . . 1 . . . . . . . . Propulsion 4 | . . . 1 1 1 . . 1 . . . . . . Utility 7 | . . . 1 1 1 1 . 1 . 2 . . . . Weapon . | . . . . . . . . . . . . . . . Parts Attached 97 | . 6 3 15 3 8 10 23 . 6 6 5 . 9 3 Power 18 | . . 1 2 . 1 6 6 . . 1 1 . . . Engine 10 | . . . 1 . 1 3 4 . . . 1 . . . Core 7 | . . 1 1 . . 3 2 . . . . . . . Reactor 1 | . . . . . . . . . . 1 . . . . Propulsion 25 | . 2 . 8 1 1 1 4 . 3 . 2 . 1 2 Treads 9 | . 2 . 2 . . . 3 . . . 1 . . 1 Leg 1 | . . . . . . . 1 . . . . . . . Wheel 3 | . . . 3 . . . . . . . . . . . Hover . | . . . . . . . . . . . . . . . Flight 12 | . . . 3 1 1 1 . . 3 . 1 . 1 1 Utility 31 | . 2 . 4 1 3 3 8 . 3 3 1 . 3 . Device 9 | . . . . . 1 1 3 . . 3 . . 1 . Storage 3 | . 1 . 1 . . . . . 1 . . . . . Processor 6 | . . . 1 . 1 2 . . . . 1 . 1 . Hackware 5 | . . . . . 1 . 2 . 2 . . . . . Protection 8 | . 1 . 2 1 . . 3 . . . . . 1 . Artifact . | . . . . . . . . . . . . . . . Weapon 23 | . 2 2 1 1 3 . 5 . . 2 1 . 5 1 Energy Gun 8 | . . 1 . . . . 4 . . 1 . . 2 . Energy Cannon 2 | . . . . . . . . . . . . . 2 . Ballistic Gun 5 | . 1 . 1 1 . . 1 . . . 1 . . . Ballistic Cannon 2 | . . . . . . . . . . 1 . . 1 . Launcher 2 | . . 1 . . 1 . . . . . . . . . Special Weapon 3 | . 1 . . . 1 . . . . . . . . 1 Impact Weapon . | . . . . . . . . . . . . . . . Slashing Weapon 1 | . . . . . 1 . . . . . . . . . Piercing Weapon . | . . . . . . . . . . . . . . . Special Melee Weapon . | . . . . . . . . . . . . . . . Unidentified Prototypes 4 | . . . . . 1 2 . . . . . . 1 . Parts Lost 38 | . . 2 2 . . 2 18 . . . . 3 1 10 Power 8 | . . 1 1 . . 1 3 . . . . . 1 1 Propulsion 14 | . . . 1 . . 1 7 . . . . . . 5 Utility 11 | . . . . . . . 6 . . . . 3 . 2 Weapon 5 | . . 1 . . . . 2 . . . . . . 2 Highest Loss Streak 8 | . . 2 2 . . 1 8 . . . . 2 1 7 To Critical Strikes . | . . . . . . . . . . . . . . . Average Backups 7 | 6 8 8 9 8 9 9 7 5 5 4 4 5 4 3 Power . | 1 1 2 1 1 . . . 1 1 . . . . . Propulsion 1 | 4 4 4 2 1 . . . . . . . . . . Utility 2 | . . . . 3 4 4 4 3 3 1 2 2 1 1 Weapon 2 | 1 2 1 4 1 2 2 1 . . 2 2 3 3 1 Tool/Special . | . . . . . . . . . . . . . . . Unused Backups 20 | . . 2 9 . 4 1 2 . . . . . 1 1 Power 1 | . . . . . 1 . . . . . . . . . Propulsion 3 | . . . 3 . . . . . . . . . . . Utility 5 | . . . . . 2 1 . . . . . . 1 1 Weapon 10 | . . 2 6 . . . 2 . . . . . . . Tool/Special 1 | . . . . . 1 . . . . . . . . . Average Slot Usage (%) 80 | . 99 96 87 83 94 85 72 70 73 72 74 67 82 58 Engine 5 | . 14 1 4 9 7 3 7 . . . . . 4 . Core 2 | . . 9 1 . . 3 2 11 9 1 . . . . Reactor 1 | . . . . . . . . . . 3 5 5 5 2 Treads 8 | . 25 28 8 1 . . 6 5 3 . 1 5 4 1 Wheel 1 | . . . 11 . . . . . . . . . . . Flight 11 | . . . 11 34 35 31 4 . 5 15 15 15 15 8 Device 7 | . . . . . 5 6 9 5 5 11 15 11 13 11 Storage 5 | . 16 14 7 9 7 6 3 . 1 . . . . . Processor 11 | . . . 1 9 13 13 13 11 11 10 11 15 19 21 Hackware 4 | . . . . . 7 6 6 11 11 10 10 5 5 4 Protection 7 | . 10 14 17 9 1 5 4 5 5 10 8 2 4 5 Energy Gun 3 | . 6 2 11 1 . . 4 5 5 1 . . 5 . Ballistic Gun 3 | . 10 . 9 9 1 . 1 5 5 . 1 5 1 1 Launcher 1 | . . 13 1 . 5 . . . . . . . . . Special Weapon 2 | . 10 11 . . 4 . . . . . . . . . Slashing Weapon 1 | . . . . . 1 6 3 . . . . . . . Peak Build Rating 110 | 6 8 10 21 26 41 52 52 45 80 95 100 96 110 97 Average Rating 48 | 6 7 8 14 22 37 46 38 45 54 90 93 86 98 64 On Entrance 46 | 6 6 8 8 21 24 41 52 45 45 77 92 96 84 97 Avg Prop Armor Cover (%) 10 | . . . 9 . . . 5 5 5 4 8 9 11 29 Naked Turns . | . . . . . . . . . . . . . . . Heaviest Build 80 | 13 53 50 52 20 27 29 42 40 80 39 37 30 55 37 Greatest Support 44 | 20 40 40 44 20 30 30 40 20 39 39 39 33 39 39 Greatest Overweight (x) 9 | . 1 1 5 . . 1 9 1 3 1 1 . 1 1 Average Overweight (x) . | . . 1 1 . . . . 1 . . . . . . Largest Inventory Capacity 20 | 8 20 20 20 10 10 10 10 5 20 5 5 5 5 5 Average Capacity 9 | 8 19 20 14 10 10 10 7 5 10 5 5 5 5 5 Most Carried 14 | 6 10 9 14 10 10 10 10 5 5 5 5 5 5 5 Average Carried 7 | 6 8 8 9 8 9 9 7 5 5 4 4 5 4 3 Final Capacity 20 | 8 20 20 10 10 10 10 5 5 5 5 5 5 5 5 Final Carried 10 | 6 9 8 7 10 10 9 5 5 5 5 5 5 4 3 Class Distribution -------------------- 28% | Mutant 21% | Scavenger-Mutant 10% | Derelict-Mutant 10% | Scout 7% | Infiltrator-Mutant 5% | Hacker-Scout 3% | Sprinter Dominant Class ---------------- Mutant | -10/Materials Mutant | -10/Mines Mutant | -9/Materials Sprinter | -8/Materials Scout | -7/Factory Scout | -6/Factory Scavenger-Mutant | -6/Extension Scavenger-Mutant | -5/Factory Scavenger-Mutant | -5/DSF Hacker-Mutant | -4/Factory Hacker-Scout | -4/Upper Caves Infiltrator-Mutant | -4/Upper Caves Derelict-Mutant | -4/Warlord Infiltrator-Mutant | -3/Proximity Caves Resources | -11 -10 -10 -9 -8 -7 -6 -6 -5 -5 -4 -4 -4 -4 -3 ----------- Run | Yrd Mat Min Mat Mat Fac Fac Ext Fac DSF Fac Upp Upp War Pro Matter Collected 1903 | 200 81 132 159 . 96 72 662 . 10 . 8 259 123 101 Remotely . | . . . . . . . . . . . . . . . Salvage Created 1202 | . 113 114 227 . . 72 410 . . . . 111 122 33 Parts 61 | . 6 7 17 . . 3 17 . . . . 7 3 1 Haulers Intercepted . | . . . . . . . . . . . . . . . Recyclers Shooed 1 | . . 1 . . . . . . . . . . . . Parts Field Recycled . | . . . . . . . . . . . . . . . Retrieved Matter . | . . . . . . . . . . . . . . . Parts Self-Destructed 10 | . . . . . . . . . . . 3 7 . . Prevented . | . . . . . . . . . . . . . . . Parts Restored . | . . . . . . . . . . . . . . . Kills | -11 -10 -10 -9 -8 -7 -6 -6 -5 -5 -4 -4 -4 -4 -3 ------- Run | Yrd Mat Min Mat Mat Fac Fac Ext Fac DSF Fac Upp Upp War Pro Combat Hostiles Destroyed 25 | . 4 6 5 . . 1 5 . . . . 2 1 1 Melee 5 | . . . . . . 1 4 . . . . . . . Guns 14 | . 4 1 5 . . . . . . . . 2 1 1 AOE 5 | . . 5 . . . . . . . . . . . . Classes Destroyed 10 | . 2 3 3 . . . . . . . . 1 1 . Worker 1 | . . 1 . . . . . . . . . . . . Operator 2 | . . . 1 . . . 1 . . . . . . . Watcher 3 | . . . 1 . . . 2 . . . . . . . Swarmer 3 | . 2 . . . . . . . . . . . . 1 Grunt 11 | . 2 3 4 . . . 1 . . . . . 1 . Sentry 6 | . . . 1 . . 1 4 . . . . . . . Demolisher 1 | . . 1 . . . . . . . . . . . . Programmer 2 | . . . . . . . . . . . . 2 . . Assembled 2 | . . 2 . . . . . . . . . . . . Butcher 1 | . . . . . . . . . . . . . 1 . Best Kill Streak 4 | . 2 4 3 . . 1 3 . . . . 2 1 1 Combat Bots Only 3 | . 2 3 2 . . 1 3 . . . . 2 1 1 Max Kills in Single Turn 1 | . 1 1 1 . . 1 1 . . . . 1 1 1 Gunslinging . | . . . . . . . . . . . . . . . Exploded 1 | . . 1 . . . . . . . . . . . . Melee 1 | . . . . . . 1 1 . . . . . . . Uniques/NPCs Destroyed . | . . . . . . . . . . . . . . . Combat | -11 -10 -10 -9 -8 -7 -6 -6 -5 -5 -4 -4 -4 -4 -3 -------- Run | Yrd Mat Min Mat Mat Fac Fac Ext Fac DSF Fac Upp Upp War Pro Hostile Shots Fired 554 | . 13 14 17 23 2 36 260 2 . 12 18 49 16 92 Missed 237 | . 4 4 5 13 2 16 113 2 . 8 9 21 9 31 Hits 317 | . 9 10 12 10 . 20 147 . . 4 9 28 7 61 Melee 1 | . . 1 . . . . . . . . . . . . Projectile 316 | . 9 9 12 10 . 20 147 . . 4 9 28 7 61 AOE 9 | . . 5 . . . . . . . . . . . 4 Critical Strikes 6 | . . . . . . . . . . . . 2 . 4 Damage Taken 5582 | . 110 339 152 150 . 275 1861 . . 88 222 563 204 1618 Core 1814 | . 11 26 47 31 . 38 491 . . . 51 80 . 1039 Absorbed by Shields 138 | . . . . . . . 120 . . . . . 18 . Redirected to Shielding 163 | . 11 20 3 . . 79 33 . . . . . 7 10 Regen/Repaired (Parts) 104 | . . . . . . . . . . . . . 104 . Core Remaining (%) 86 | 100 . 85 88 94 100 . 37 . 100 . . . . . Volleys Fired 93 | . 11 12 16 2 . . 7 . . . 1 17 13 14 Largest 2 | . 2 1 2 1 . . 1 . . . 1 1 2 1 Hottest 120 | . 120 100 95 25 . . 80 . . . 55 35 106 88 Shots Fired 121 | . 13 12 32 2 . . 8 . . . 1 17 22 14 Gun 88 | . 11 1 31 2 . . 8 . . . . 17 12 6 Cannon 13 | . . . . . . . . . . . 1 . 10 2 Launcher 10 | . . 9 1 . . . . . . . . . . . Special 10 | . 2 2 . . . . . . . . . . . 6 Kinetic 66 | . 11 . 15 2 . . . . . . 1 17 14 6 Thermal 43 | . 2 3 16 . . . 8 . . . . . 8 6 Explosive 10 | . . 9 1 . . . . . . . . . . . Electromagnetic 2 | . . . . . . . . . . . . . . 2 Robot Hit Streak 11 | . 4 5 6 1 . . 11 . . . . 5 6 6 Robot Miss Streak 4 | . 3 1 4 1 . . 1 . . . . 2 3 2 Penetration Max . | . . . . . . . . . . . . . . . Secondary Targets 1 | . . . 1 . . . . . . . . . . . Max Gunslinging Chain 1 | . . . 1 . . . . . . . . . . . Shots Hit Robots 94 | . 7 8 14 2 . 5 30 . . . . 10 9 9 Core Hits 55 | . 5 12 9 1 . 2 14 . . . . 4 5 3 Critical Kills . | . . . . . . . . . . . . . . . Critical Parts Destroyed . | . . . . . . . . . . . . . . . Critical Strikes 3 | . . . 1 . . . 1 . . . . . . 1 Burn 2 | . . . 1 . . . . . . . . . . 1 Sever 1 | . . . . . . . 1 . . . . . . . Melee Attacks 61 | . . . . . 3 7 51 . . . . . . . Impact . | . . . . . . . . . . . . . . . Slashing 61 | . . . . . 3 7 51 . . . . . . . Piercing . | . . . . . . . . . . . . . . . Sneak Attacks 2 | . . . . . . . 2 . . . . . . . Combat Hostiles . | . . . . . . . . . . . . . . . Follow-up Attacks . | . . . . . . . . . . . . . . . Damage Inflicted 2826 | . 101 370 234 25 . 188 1129 . . . . 296 309 174 Guns 1007 | . 77 14 234 25 . . 155 . . . . 296 164 42 Cannons 212 | . . . . . . . . . . . . . 145 67 Explosions 332 | . . 332 . . . . . . . . . . . . Melee 1153 | . . . . . . 188 965 . . . . . . . Ramming 9 | . . . . . . . 9 . . . . . . . Kinetic 800 | . 77 . 103 25 . . . . . . . 296 257 42 Thermal 465 | . 24 38 131 . . . 155 . . . . . 52 65 Explosive 332 | . . 332 . . . . . . . . . . . . Electromagnetic 67 | . . . . . . . . . . . . . . 67 Impact . | . . . . . . . . . . . . . . . Slashing 1153 | . . . . . . 188 965 . . . . . . . Piercing . | . . . . . . . . . . . . . . . Highest Corruption 2 | . . . . . . . 2 . . . . . . . Average Corruption 2 | . . . . . . . 2 . . . . . . . Corruption Purged . | . . . . . . . . . . . . . . . Corruption Blocked . | . . . . . . . . . . . . . . . Effects 5 | . . . . . . . 5 . . . . . . . Message Errors 1 | . . . . . . . 1 . . . . . . . Matter Fused 1 | . . . . . . . 1 . . . . . . . Data Loss (minor) 2 | . . . . . . . 2 . . . . . . . Misfires 1 | . . . . . . . 1 . . . . . . . Overload Shots . | . . . . . . . . . . . . . . . Overflow Damage 147 | . . . . . . . 147 . . . . . . . Projectiles . | . . . . . . . . . . . . . . . Explosions . | . . . . . . . . . . . . . . . Melee 147 | . . . . . . . 147 . . . . . . . Knockbacks . | . . . . . . . . . . . . . . . Impact . | . . . . . . . . . . . . . . . Kinetic . | . . . . . . . . . . . . . . . Secondary . | . . . . . . . . . . . . . . . Self-Inflicted Damage 39 | . . 26 12 . . . 1 . . . . . . . Shots 2 | . . 1 1 . . . . . . . . . . . Rammed 2 | . . . . . . . 2 . . . . . . . Targets Rammed 2 | . . . . . . . 2 . . . . . . . Kicked . | . . . . . . . . . . . . . . . Crushed . | . . . . . . . . . . . . . . . Highest Temperature 99 | . 67 14 90 12 4 53 28 . . . 12 . 99 36 Average Temperature 17 | . 35 7 37 5 2 10 11 . . . 10 . 35 15 Received Heat Transfer 930 | . 51 18 69 72 . 54 428 . . . 57 24 55 102 Siege Activations . | . . . . . . . . . . . . . . . Martial Activations . | . . . . . . . . . . . . . . . Shielding Activations . | . . . . . . . . . . . . . . . Robots Disrupted . | . . . . . . . . . . . . . . . Combat Hostiles . | . . . . . . . . . . . . . . . Robots Corrupted . | . . . . . . . . . . . . . . . Combat Hostiles . | . . . . . . . . . . . . . . . Parts Fried . | . . . . . . . . . . . . . . . Impact Corruptions . | . . . . . . . . . . . . . . . Robots Melted 1 | . . . . . . . 1 . . . . . . . Combat Hostiles 1 | . . . . . . . 1 . . . . . . . Parts Melted 3 | . . . . . . . 1 . . . . . 1 1 Heat Transferred 1645 | . 50 87 370 . . . 350 . . . . . 148 640 Parts Sabotaged . | . . . . . . . . . . . . . . . Parts Stolen . | . . . . . . . . . . . . . . . Parts Stripped . | . . . . . . . . . . . . . . . Power Chain Reactions . | . . . . . . . . . . . . . . . Alert | -11 -10 -10 -9 -8 -7 -6 -6 -5 -5 -4 -4 -4 -4 -3 ------- Run | Yrd Mat Min Mat Mat Fac Fac Ext Fac DSF Fac Upp Upp War Pro Maximum Alert Level . | . . . . . . . . . . . . . . . Low Security (%) 100 | 100 100 100 100 100 100 100 100 100 100 100 . . . . Level 1 . | . . . . . . . . . . . . . . . Level 2 . | . . . . . . . . . . . . . . . Level 3 . | . . . . . . . . . . . . . . . Level 4 . | . . . . . . . . . . . . . . . Level 5 . | . . . . . . . . . . . . . . . High Security . | . . . . . . . . . . . . . . . Max Security . | . . . . . . . . . . . . . . . Peak Influence 194 | . 71 56 50 75 54 41 194 50 15 20 . . . . Initial 50 | . . . 6 3 29 . 7 50 . 7 . . . . Average 27 | . 18 22 19 13 21 13 46 26 4 5 . . . . Influence Increases 1972 | . 114 170 174 80 91 107 763 . 15 41 45 95 167 110 Destroy 0b10 Robot/C 880 | . 80 80 100 . . 20 440 . . . . 40 100 20 Destroy 0b10 Robot/NC 35 | . . 5 10 . . . 15 . . . . . 5 . Destroy Leader 116 | . 20 20 22 . . 10 34 . . . . 10 . . Allied During Kill 154 | . . . . . . . 107 . . . . . 47 . Successful Hack 98 | . 13 . 18 5 14 . 22 . . 26 . . . . Disable Machine 75 | . . 15 15 . 15 . 30 . . . . . . . Destroy Structure 59 | . 1 35 9 . 2 2 10 . . . . . . . Partial Spotted 45 | . . . . . 30 . . . . 15 . . . . Lose Combat Pursuer 510 | . . 15 . 75 30 75 105 . 15 . 45 45 15 90 Influence Decreases 1972 | . 114 152 184 23 156 90 676 104 . 51 50 95 68 209 Entered New Map 227 | . . . 12 5 36 . 10 54 . 8 3 . . 99 Time Decay 1298 | . 114 152 159 18 120 80 312 50 . 43 47 75 58 70 Lost Part 178 | . . . 13 . . 10 85 . . . . 20 10 40 Lost Ally 269 | . . . . . . . 269 . . . . . . . Squads Dispatched 6 | . . . 1 2 . . 2 . 1 . . . . . Investigation 1 | . . . . . . . 1 . . . . . . . Extermination . | . . . . . . . . . . . . . . . Reinforcement 5 | . . . 1 2 . . 1 . 1 . . . . . Assault . | . . . . . . . . . . . . . . . Garrison . | . . . . . . . . . . . . . . . Intercept . | . . . . . . . . . . . . . . . Searches Triggered . | . . . . . . . . . . . . . . . Construction Impeded . | . . . . . . . . . . . . . . . Haulers Reinforced . | . . . . . . . . . . . . . . . Active Scanning Responses . | . . . . . . . . . . . . . . . Cargo Convoy Interrupts . | . . . . . . . . . . . . . . . Stealth | -11 -10 -10 -9 -8 -7 -6 -6 -5 -5 -4 -4 -4 -4 -3 --------- Run | Yrd Mat Min Mat Mat Fac Fac Ext Fac DSF Fac Upp Upp War Pro Distress Signals 11 | . 1 . 2 2 . . . . . . . . . 6 Communications Jammed . | . . . . . . . . . . . . . . . Distress Signals . | . . . . . . . . . . . . . . . Times Spotted 121 | . 7 9 10 11 2 2 29 1 4 5 4 5 23 9 Peak Tracking Total 10 | . 2 2 4 10 2 3 8 1 3 4 3 5 6 4 Tactical Retreats 17 | . . 1 . 1 1 3 3 . 1 . 1 1 1 4 Traps | -11 -10 -10 -9 -8 -7 -6 -6 -5 -5 -4 -4 -4 -4 -3 ------- Run | Yrd Mat Min Mat Mat Fac Fac Ext Fac DSF Fac Upp Upp War Pro Traps Triggered 7 | . . . . 1 1 2 3 . . . . . . . Indirectly . | . . . . . . . . . . . . . . . Trap Hack Attempts . | . . . . . . . . . . . . . . . Triggered . | . . . . . . . . . . . . . . . Disarmed . | . . . . . . . . . . . . . . . Reprogrammed . | . . . . . . . . . . . . . . . Reused . | . . . . . . . . . . . . . . . Traps Extracted . | . . . . . . . . . . . . . . . Installed . | . . . . . . . . . . . . . . . Triggered . | . . . . . . . . . . . . . . . Machines | -11 -10 -10 -9 -8 -7 -6 -6 -5 -5 -4 -4 -4 -4 -3 ---------- Run | Yrd Mat Min Mat Mat Fac Fac Ext Fac DSF Fac Upp Upp War Pro Machines Disabled 6 | . . 1 1 . 1 . 2 . . . . . 1 . Max in Single Turn 1 | . . 1 1 . 1 . . . . . . . 1 . Machines Repaired . | . . . . . . . . . . . . . . . Machines Dismantled . | . . . . . . . . . . . . . . . Machines Sabotaged . | . . . . . . . . . . . . . . . Overloaded Fab Kills . | . . . . . . . . . . . . . . . Hacking | -11 -10 -10 -9 -8 -7 -6 -6 -5 -5 -4 -4 -4 -4 -3 --------- Run | Yrd Mat Min Mat Mat Fac Fac Ext Fac DSF Fac Upp Upp War Pro Machines Accessed 34 | . 2 . 3 2 4 3 9 1 . 4 . 1 5 . Terminals 22 | . 2 . 3 2 3 1 9 1 . 1 . . . . Fabricators 1 | . . . . . . 1 . . . . . . . . Repair Stations 1 | . . . . . . 1 . . . . . . . . Recycling Units . | . . . . . . . . . . . . . . . Scanalyzers 3 | . . . . . 1 . . . . 2 . . . . Garrison Access 1 | . . . . . . . . . . 1 . . . . Total Hacks 75 | . 9 . 12 3 10 6 17 1 . 9 . 1 7 . Successful 43 | . 6 . 6 1 6 3 7 1 . 5 . 1 7 . Failed 31 | . 3 . 6 2 4 3 10 . . 3 . . . . Catastrophic 2 | . . . 1 1 . . . . . . . . . . Database Lockouts 1 | . . . . . . . . . . 1 . . . . Manual 29 | . 8 . 9 2 5 . . . . 5 . . . . Terminals 55 | . 9 . 12 3 8 1 17 1 . 4 . . . . Fabricators 1 | . . . . . . 1 . . . . . . . . Repair Stations 4 | . . . . . . 4 . . . . . . . . Recycling Units . | . . . . . . . . . . . . . . . Scanalyzers 6 | . . . . . 2 . . . . 4 . . . . Garrison Access 1 | . . . . . . . . . . 1 . . . . Terminal Hacks 22 | . 1 . 2 . 2 1 7 1 . . . 1 7 . Record 5 | . . . . . . . . . . . . . 5 . Open Door 11 | . . . . . . 1 7 . . . . 1 2 . Open DSF 1 | . . . . . . . . 1 . . . . . . Alert Level 1 | . . . 1 . . . . . . . . . . . Locate Traps 3 | . 1 . 1 . 1 . . . . . . . . . Zone Layout 1 | . . . . . 1 . . . . . . . . . Fabricator Hacks 1 | . . . . . . 1 . . . . . . . . Network Status 1 | . . . . . . 1 . . . . . . . . Repair Station Hacks 1 | . . . . . . 1 . . . . . . . . Scan Component 1 | . . . . . . 1 . . . . . . . . Recycling Unit Hacks . | . . . . . . . . . . . . . . . Scanalyzer 4 | . . . . . 1 . . . . 3 . . . . Insert Component 1 | . . . . . . . . . . 1 . . . . Analyze 1 | . . . . . . . . . . 1 . . . . Retrieve Study 2 | . . . . . 1 . . . . 1 . . . . Garrison Access Hacks . | . . . . . . . . . . . . . . . Unauthorized Hacks 15 | . 5 . 4 1 3 . . . . 2 . . . . Terminals 14 | . 5 . 4 1 3 . . . . 1 . . . . Track 3 | . 2 . 1 . . . . . . . . . . . Botnet 8 | . 2 . 2 1 2 . . . . 1 . . . . Operators 3 | . 1 . 1 . 1 . . . . . . . . . Fabricators . | . . . . . . . . . . . . . . . Repair Stations . | . . . . . . . . . . . . . . . Recycling Units . | . . . . . . . . . . . . . . . Scanalyzers . | . . . . . . . . . . . . . . . Garrison Access 1 | . . . . . . . . . . 1 . . . . Reprogram 1 | . . . . . . . . . . 1 . . . . Data Cores Recovered . | . . . . . . . . . . . . . . . Used . | . . . . . . . . . . . . . . . Hacking Detections 18 | . 2 . 3 2 4 1 3 . . 3 . . . . Full Trace Events 1 | . . . . . . . 1 . . . . . . . Feedback Events . | . . . . . . . . . . . . . . . Feedback Blocked . | . . . . . . . . . . . . . . . Robot Schematics Acquired . | . . . . . . . . . . . . . . . Robots Built . | . . . . . . . . . . . . . . . Authchips . | . . . . . . . . . . . . . . . Time . | . . . . . . . . . . . . . . . Total Robot Build Rating . | . . . . . . . . . . . . . . . Part Schematics Acquired 1 | . . . . . . . . . . 1 . . . . Parts Built . | . . . . . . . . . . . . . . . Authchips . | . . . . . . . . . . . . . . . Time . | . . . . . . . . . . . . . . . Total Part Build Rating . | . . . . . . . . . . . . . . . Part Studies Acquired 2 | . . . . . 1 . . . . 1 . . . . Parts Repaired . | . . . . . . . . . . . . . . . Time . | . . . . . . . . . . . . . . . Parts Recycled . | . . . . . . . . . . . . . . . Recycled Matter . | . . . . . . . . . . . . . . . Retrieved Matter . | . . . . . . . . . . . . . . . Retrieved Components . | . . . . . . . . . . . . . . . Parts Scanalyzed 1 | . . . . . . . . . . 1 . . . . Part Schematics Acquired 1 | . . . . . . . . . . 1 . . . . Parts Damaged . | . . . . . . . . . . . . . . . Bothacking | -11 -10 -10 -9 -8 -7 -6 -6 -5 -5 -4 -4 -4 -4 -3 ------------ Run | Yrd Mat Min Mat Mat Fac Fac Ext Fac DSF Fac Upp Upp War Pro Used RIF Installer . | . . . . . . . . . . . . . . . Robots Hacked . | . . . . . . . . . . . . . . . Non-combat . | . . . . . . . . . . . . . . . Combat . | . . . . . . . . . . . . . . . Robot Hacks Applied . | . . . . . . . . . . . . . . . Relay Couplers Released . | . . . . . . . . . . . . . . . Fabnet Peak Effective % . | . . . . . . . . . . . . . . . Robots Rewired 14 | . . . . . . . 9 . . . . . 5 . Allies Hacked . | . . . . . . . . . . . . . . . Hacks Repelled . | . . . . . . . . . . . . . . . Allies | -11 -10 -10 -9 -8 -7 -6 -6 -5 -5 -4 -4 -4 -4 -3 -------- Run | Yrd Mat Min Mat Mat Fac Fac Ext Fac DSF Fac Upp Upp War Pro Total Allies 27 | . . . . . . . 22 . . . . . 5 . Largest Group 10 | . . . . . . . 10 4 3 . . . 5 . Highest-Rated Group 284 | . . . . . . . 284 241 82 . . . 261 . Highest-Rated Ally 159 | . . . . . . . 159 159 31 . . . 64 . Total Orders 7 | . . . . . . . 1 . . . . . 6 . ROAM 1 | . . . . . . . 1 . . . . . . . GUARD 5 | . . . . . . . . . . . . . 5 . AID 1 | . . . . . . . . . . . . . 1 . Ally Attacks 171 | . . . . . . . 132 . 14 . . . 25 . Total Damage 4279 | . . . . . . . 3220 . 254 . . . 805 . Kills 23 | . . . . . . . 18 . . . . . 5 . Allies Corrupted . | . . . . . . . . . . . . . . . Allies Melted 2 | . . . . . . . 2 . . . . . . . Intel | -11 -10 -10 -9 -8 -7 -6 -6 -5 -5 -4 -4 -4 -4 -3 ------- Run | Yrd Mat Min Mat Mat Fac Fac Ext Fac DSF Fac Upp Upp War Pro Active Infowar (turns) 3847 | . . . 64 105 306 262 1304 113 104 153 239 215 858 124 Optics 3847 | . . . 64 105 306 262 1304 113 104 153 239 215 858 124 Sensors 1124 | . . . . . 228 262 251 . . 67 239 77 . . Decoding 759 | . . . . . . . . . . . . . 635 124 Jamming 1577 | . . . . . . . . . . 142 239 215 858 123 ECM 19 | . . . . . . . . . . 19 . . . . Robot Analysis Total . | . . . . . . . . . . . . . . . Derelict Logs Recovered 2 | . . . . . . . . . . . 2 . . . Drone Launches . | . . . . . . . . . . . . . . . Drone Recoveries . | . . . . . . . . . . . . . . . Exploration | -11 -10 -10 -9 -8 -7 -6 -6 -5 -5 -4 -4 -4 -4 -3 ------------- Run | Yrd Mat Min Mat Mat Fac Fac Ext Fac DSF Fac Upp Upp War Pro Turns Passed 5308 | 8 475 431 461 105 306 262 1304 113 104 153 239 215 858 274 Spaces Moved 6211 | 7 190 165 309 285 1022 801 729 48 86 359 582 335 911 382 Core 200 | . . . . . . . 52 . . . . . . 148 Treads 788 | . 168 165 20 . . . 354 48 21 . . . . 12 Legs 29 | 7 22 . . . . . . . . . . . . . Wheels 172 | . . . 172 . . . . . . . . . . . Hover . | . . . . . . . . . . . . . . . Flight 5022 | . . . 117 285 1022 801 323 . 65 359 582 335 911 222 Fastest Speed 23 | 120 120 240 29 26 23 24 24 240 34 34 34 54 29 29 Average Speed 71 | 120 226 240 112 26 23 25 137 240 107 36 38 54 79 60 Slowest Speed 500 | 120 240 240 195 26 26 103 500 240 400 117 117 54 134 145 Overloaded Moves . | . . . . . . . . . . . . . . . Propulsion Burnouts . | . . . . . . . . . . . . . . . Robots Hopped 44 | . . . . 6 3 6 19 . . 2 5 . . 3 Potential Cave-ins . | . . . . . . . . . . . . . . . Cave-ins Triggered . | . . . . . . . . . . . . . . . Exploration Rate (%) 42 | 3 39 55 31 34 25 16 78 2 84 8 77 54 86 41 Regions Visited 14 Branch Regions 6 Pre-discovered Areas 2 | . . . . . . . . . . . 1 . 1 . Known Exits Taken 8 | . . . . . 1 1 1 1 . 1 1 1 1 . Unknown Exits Taken 5 | 1 1 1 1 1 . . . . . . . . . . Scrap Searched 5 | . . . . . . . . . . . 2 . . 3 Spaces Dug 6 | . . . . . 2 2 1 . . . 1 . . . Terrain Destroyed 70 | . 1 38 8 . 2 2 1 . . . 1 14 2 1 Melee 5 | . . . . . 2 2 1 . . . . . . . Projectile 19 | . 1 . . . . . . . . . 1 14 2 1 AOE 46 | . . 38 8 . . . . . . . . . . . Terrain Rammed . | . . . . . . . . . . . . . . . Walls Destroyed . | . . . . . . . . . . . . . . . Machines Disabled . | . . . . . . . . . . . . . . . Actions | -11 -10 -10 -9 -8 -7 -6 -6 -5 -5 -4 -4 -4 -4 -3 --------- Run | Yrd Mat Min Mat Mat Fac Fac Ext Fac DSF Fac Upp Upp War Pro Total 6843 | 6 218 185 395 308 1082 842 917 47 96 381 589 351 1019 407 Wait 166 | . 4 2 19 8 25 5 52 . . . 1 . 47 3 Move 6119 | 6 189 164 308 272 1015 788 698 47 85 354 572 334 910 377 Hop 34 | . . . . 6 3 6 11 . . 2 4 . . 2 Pick Up 66 | . 6 2 17 7 12 10 1 . . 5 1 . 2 3 Fast Attach 43 | . . . 5 2 1 1 16 . 5 3 5 . 5 . Attach 43 | . 2 1 6 3 8 9 3 . . 5 . . 2 4 Detach 16 | . . . . 2 4 2 2 . . 3 . . 1 2 Swap 33 | . 4 2 6 2 3 6 4 . 1 1 . . 4 . Drop 72 | . 2 2 18 4 8 8 3 . 5 6 5 . 9 2 Fire 93 | . 11 12 16 2 . . 7 . . . 1 17 13 14 Melee 61 | . . . . . 3 7 51 . . . . . . . Ram 1 | . . . . . . . 1 . . . . . . . Kick . | . . . . . . . . . . . . . . . Crush 1 | . . . . . . . 1 . . . . . . . Escape Stasis 14 | . . . . . . . 14 . . . . . . . Rewire 81 | . . . . . . . 53 . . 2 . . 26 . Trap . | . . . . . . . . . . . . . . . Miscellaneous . | . . . . . . . . . . . . . . . Route ------- -11/Scrapyard -10/Materials -10/Mines -9/Materials -8/Materials -7/Factory (discovered 2 exits: *Fac / *Low) -6/Factory (discovered 2 exits: *Low / *Ext) -6/Extension (discovered 2 exits: *Fac / [*Cet]) -5/Factory (discovered 2 exits: *Fac / DSF) -5/DSF -4/Factory -4/Upper Caves -4/Upper Caves -4/Warlord -3/Proximity Caves History --------- Turn | Location | Event 1 | -11/Scrapyard | Discovered new exit (range 3) 9 | -11/Scrapyard | Entered Materials 316 | -10/Materials | Build established: Mutant 385 | -10/Materials | Discovered new exit (range 16) 484 | -10/Materials | Entered Mines 618 | -10/Mines | Assembled infested the area 623 | -10/Mines | Assisted by a Guerilla fighting off Assembled 881 | -10/Mines | Discovered new exit (range 8) 915 | -10/Mines | Entered Materials 915 | -9/Materials | Evolved 2 slots: Propulsion x1, Utility x1 1331 | -9/Materials | Discovered new exit (range 11) 1376 | -9/Materials | Entered another Materials area 1376 | -8/Materials | Evolved 2 slots: Propulsion x1, Utility x1 1476 | -8/Materials | Discovered new exit (range 18) 1481 | -8/Materials | Entered Factory 1481 | -7/Factory | Evolved 2 slots: Propulsion x1, Utility x1 1719 | -7/Factory | Discovered new exit (range 19) 1757 | -7/Factory | Identified exit to Lower Caves 1785 | -7/Factory | Discovered new exit (range 11) 1787 | -7/Factory | Identified exit to Factory 1787 | -7/Factory | Entered another Factory area 1787 | -6/Factory | Evolved 2 slots: Power x1, Utility x1 1998 | -6/Factory | Discovered new exit (range 7) 1999 | -6/Factory | Identified exit to Lower Caves 2009 | -6/Factory | Discovered new exit (range 6) 2010 | -6/Factory | Identified exit to Extension 2049 | -6/Factory | Entered Extension 2086 | -6/Extension | Rescued a captive Derelict 2094 | -6/Extension | Rescued a captive Derelict 2128 | -6/Extension | Rescued a captive Derelict 2128 | -6/Extension | Rescued a captive Derelict 2167 | -6/Extension | Spotted B-75 Beast 2171 | -6/Extension | Rescued a captive Derelict 2173 | -6/Extension | Rescued a captive Derelict 2254 | -6/Extension | Lost 6 allies 2338 | -6/Extension | Lost 8 parts (1p4n3u) 2622 | -6/Extension | Build established: Scavenger-Mutant 2703 | -6/Extension | Spotted B-75 Beast 2745 | -6/Extension | Core integrity fell below 50% 2812 | -6/Extension | Lost 6 parts (2p2n1u1w) 2825 | -6/Extension | Rescued a captive Derelict 2827 | -6/Extension | Rescued a captive Derelict 2840 | -6/Extension | Rescued A7 2891 | -6/Extension | Rescued a captive Derelict 2894 | -6/Extension | Rescued a captive Derelict 2969 | -6/Extension | Rescued a captive Derelict 2988 | -6/Extension | Rescued a captive Derelict 3325 | -6/Extension | Discovered new exit (range 10) 3327 | -6/Extension | Discovered new exit (range 6) 3349 | -6/Extension | Identified exit to Factory 3353 | -6/Extension | Entered Factory 3353 | -5/Factory | Accompanied by 4 allies (A7) 3353 | -5/Factory | Evolved 2 slots: Propulsion x1, Utility x1 3464 | -5/Factory | Discovered new exit (range 14) 3466 | -5/Factory | Identified exit to DSF 3466 | -5/Factory | Entered DSF 3466 | -5/DSF | Accompanied by 3 allies 3524 | -5/DSF | Additional patrols routed to DSF 3550 | -5/DSF | Discovered new exit (range 19) 3564 | -5/DSF | Lost 3 allies 3569 | -5/DSF | Identified exit to Factory 3570 | -5/DSF | Entered Factory 3570 | -4/Factory | Evolved 2 slots: Utility x2 3614 | -4/Factory | Central database locked down 3721 | -4/Factory | Discovered new exit (range 5) 3723 | -4/Factory | Identified exit to Upper Caves 3723 | -4/Factory | Entered Upper Caves 3826 | -4/Upper Caves | Spotted B-86 Titan 3855 | -4/Upper Caves | Attracted the attention of an 0b10 outpost 3862 | -4/Upper Caves | Learned location of Armory (-3) 3869 | -4/Upper Caves | Learned 12 Research zone layouts 3877 | -4/Upper Caves | Found DCF Scrap (12 items) 3929 | -4/Upper Caves | Discovered new exit (range 13) 3952 | -4/Upper Caves | Build established: Hacker-Scout 3952 | -4/Upper Caves | Identified exit to Upper Caves 3962 | -4/Upper Caves | Entered another Upper Caves area 3986 | -4/Upper Caves | Entered a destroyed Warlord outpost 4174 | -4/Upper Caves | Discovered new exit (range 5) 4176 | -4/Upper Caves | Identified exit to Warlord 4177 | -4/Upper Caves | Entered Warlord 4203 | -4/Warlord | System corruption cleaned by Quarantine Array 4323 | -4/Warlord | Opened side exit 4440 | -4/Warlord | Learned Research emergency access door positions 4441 | -4/Warlord | Learned 4 Research zone layouts 4442 | -4/Warlord | Learned Research security intel 4442 | -4/Warlord | Learned Research garrison access intel 4578 | -4/Warlord | Build established: Derelict-Mutant 4596 | -4/Warlord | Visited the Vortex Lab 4608 | -4/Warlord | Found Prototype Energy Cannon 4608 | -4/Warlord | Identified Vortex Cannon 4611 | -4/Warlord | Warlord's base attacked by MAIN.C 4961 | -4/Warlord | Warlord forces counterattacked 5033 | -4/Warlord | Discovered new exit (range 9) 5035 | -4/Warlord | Identified exit to Proximity Caves 5035 | -4/Warlord | Entered Proximity Caves 5044 | -3/Proximity Caves | Lost 5 allies 5084 | -3/Proximity Caves | Attracted the attention of an 0b10 checkpoint 5192 | -3/Proximity Caves | Lost 7 parts (1p4n2w) 5238 | -3/Proximity Caves | Spotted B-86 Titan 5239 | -3/Proximity Caves | Core integrity fell below 50% 5293 | -3/Proximity Caves | Core integrity fell below 20% 5309 | -3/Proximity Caves | Destroyed by D-63 Destroyer with Heavy Rocket Launcher Last Messages --------------- 05142_ Slug penetrates Wall. 05143_ Enh. Flamer destroyed. 05150_ S-43 Plague heat spikes uncontrollably. 05150_ S-43 Plague overheating. 05153_ Antimatter Reactor+ destroyed. 05154_ S-43 Plague heat short circuits Xenon Bombardment Thruster. 05158_ Penetrated by Slug. 05158_ Slug penetrates Wall. 05161_ Nuclear Pulse Array destroyed. 05161_ Penetrated by Slug. 05169_ S-43 Plague misfires. 05239_ Acquired 4 matter. 05245_ Biometal Medium Treads blasted off. 05245_ Adv. Transmission Jammer destroyed. 05283_ Slug penetrates Wall. 05293_ Adv. Hacking Suite destroyed. 05293_ Knocked back. 05293_ Penetrated by Slug. 05293_ Slug penetrates Wall. Map ----- +----------------------------------------------------+ | ???????????? #?????????????????? | | ???????????????? ???????????????????? | | ???????????????????? ?????????????????????? | | ???????????????????????# #??????????????????????? | | ???????????????????????# #??????????????????????? | | ???????????????????????#//#??????????????????????? | | ???????????????????????# #??????????????????????? | | ##?????????????????????# #??????????????????????? | | ##????????????????????# #??????????????????????? | | #????????????????????# #??????????????????????? | | #??????????????????### ##?????????????????????? | | ##?????????????????# # #####?????????????????? | | #######????????????# #?????????????????? | | ##??????????## #?????????????????? | | ####???????# ###????????????????? | | = ##?????## # #????????????????? | | "## % ##?#### #?????????????????? | | "##?## ### ## ##?????????????????? | | ##????# ## #?????????????????? | | ##?????# ## BB #?????????????????? | | ???????## BB %% #?????????????????? | | ????????# ## d;## #?????????????????? | | #????????# ### #####?????????????????? | | ?????????## # ##??????????????????? | | ??????????## # ####???????????????? | | ???????????# ### @ #???????????????? | | ?????????? #?## ##??????????????? | | ????????? ##??# #??????????????? | | ???????? ###???# #??????????????? | | ??????? ###?????# #??????????????? | | ?????? #######???????### ###??????????????? | | ??????##????????????????#### # ##????????????????? | | ????????????????????????????## #?????????????????? | | ??????????????????????????????##?????????????????? | | ?????????????????????????????????????????????????? | | ?????????????????????????????????????????????????? | | ?????????????????????????????????????????????????? | | ?????????????????????????????????????????????????? | | ?????????????????????????????????????????????????? | | ?????????????????????????????????????????????????? | | ?????????????????????????????????????????????????? | | ?????????????????????????????????????????????????? | | ?????????????????????????????????????????????????? | | ?????????????????????????????????????????????????? | | ?????????????????????????????????????????????????? | | ?????????????????????????????????????????????????? | | ?????????????????????????????????????????????????? | | ?????????????????????????????????????????????????? | | | | | +----------------------------------------------------+ Best States ------------- Heat Dissipation 65 Energy Generation 33 Energy Capacity 530 Matter Stores 300 Matter Capacity 300 Sight Range 20 Robot Scan Range 16 Terrain Scan Density 10 ECM Strength 2 Jamming Range 16 Corruption Containment 12 Armor Coverage 300 Power Shielding 15 Propulsion Shielding 66 Weapon Shielding 66 Evasion (%) 74 Recoil Reduction 2 Offensive Hacking 28 Item Schematics ----------------- Nuclear Pulse Array | -4/Factory | Scanalyzed Robot Schematics ------------------ None Fabricated ------------ Nothing Repaired ---------- Nothing Studied --------- Cesium-ion Thruster | -7/Factory | Hacked Antimatter Reactor | -4/Factory | Hacked Alien Tech Used ----------------- None Achievements -------------- Charge!!! Deadly Force Watch This! Window Shopping Challenges ------------ None Game ------ Seed AlphaFusionMatterbank Manual? 0 Play Time 01:19:02 Cumulative 66.8 hours Start 2025.12.27 @ 12:13:31 End 2025.12.27 @ 13:31:07 Sessions 1 Manual Loads 0 Difficulty Rogue Special Mode None Game No. 101 Rogue 79 Adventurer 20 Explorer 2 Win Type - Total 0 Types 0/0/0/0/0/0/0/0/0/0 Lore% 44 Gallery% 38 Achievement% 27 Wizard Run 0 Options --------- Layout 1 ASCII 0 Keyboard 0 Movement Numpad Keybinds 0 Fullscreen 2 Font 24/Smallcaps Map View 50x35 Zoom Use 0% Tactical HUD 1 Map Filters NONE Filters NONE Steam 1 RUN: a828183d-102b-435f-89d1-7108ee56dd25